fUSD/lending_fUSD_20250720
["ID","MTS","AMOUNT","RATE_DAILY","PERIOD"]
[373452847,1753014648327,-1649.28,0.00019178,2]
[373452849,1753014648337,-481.48,0.00019178,2]
[373452851,1753014648347,-480.0,0.00019178,2]
[373452852,1753014648357,-480.0,0.00019178,2]
[373452854,1753014648367,-4949.4,0.00019178,2]
[373452856,1753014648378,-480.0,0.00019178,2]
[373452857,1753014648387,-480.0,0.00019178,2]
[373452859,1753014648397,-1361.96,0.00019178,2]
[373452860,1753014648406,-780.69,0.00019178,2]
[373452862,1753014648416,-526.93565287,0.00019178,2]
[373452864,1753014648425,-1646.77,0.00019178,2]
[373452865,1753014648434,-480.0,0.00019178,2]
[373452867,1753014648444,-583.71,0.00019178,2]
[373452869,1753014648454,-418.72,0.00019178,2]
[373452871,1753014648464,-787.28,0.00019178,2]
[373452872,1753014648473,-1739.9,0.00019178,2]
[373452874,1753014648483,-480.0,0.00019178,2]
[373452876,1753014648492,-2239.25,0.00019178,2]
[373452877,1753014648502,-488.08,0.00019178,2]
[373452879,1753014648511,-400.0,0.00019178,2]
[373452881,1753014648521,-480.0,0.00019178,2]
[373452883,1753014648531,-1000.87,0.00019178,2]
[373452884,1753014648540,-975.55,0.00019178,2]
[373452886,1753014648550,-1266.74,0.00019178,2]
[373452888,1753014648559,-612.5,0.00019178,2]
[373452889,1753014648569,-182.030406,0.00019178,2]
[373452891,1753014648579,-526.5712367,0.00019178,2]
[373452893,1753014648588,-185.823095,0.00019178,2]
[373452894,1753014648598,-1536.88,0.00019178,2]
[373452896,1753014648607,-480.0,0.00019178,2]
[373452898,1753014648618,-3466.23,0.00019178,2]
[373452900,1753014648628,-480.0,0.00019178,2]
[373452902,1753014648639,-380.0,0.00019178,2]
[373452903,1753014648649,-480.0,0.00019178,2]
[373452905,1753014648659,-491.87,0.00019178,2]
[373452907,1753014648669,-480.0,0.00019178,2]
[373452909,1753014648678,-480.0,0.00019178,2]
[373452911,1753014648689,-870.17,0.00019178,2]
[373452912,1753014648698,-281.18027374,0.00019178,2]
[373452914,1753014648708,-480.0,0.00019178,2]
[373452916,1753014648717,-480.0,0.00019178,2]
[373452918,1753014648727,-1692.83,0.00019178,2]
[373452919,1753014648736,-480.0,0.00019178,2]
[373452921,1753014648746,-1120.17,0.00019178,2]
[373452923,1753014648755,-1066.19,0.00019178,2]
[373452925,1753014648765,-480.0,0.00019178,2]
[373452927,1753014648774,-480.0,0.00019178,2]
[373452929,1753014648783,-480.0,0.00019178,2]
[373452930,1753014648793,-1127.39,0.00019178,2]
[373452932,1753014648802,-480.0,0.00019178,2]
[373452934,1753014648813,-480.0,0.00019178,2]
[373452936,1753014648822,-473.05370651,0.00019178,2]
[373452938,1753014648831,-480.0,0.00019178,2]
[373452939,1753014648841,-480.0,0.00019178,2]
[373452941,1753014648851,-1309.68,0.00019178,2]
[373452943,1753014648860,-480.0,0.00019178,2]
[373452945,1753014648871,-480.0,0.00019178,2]
[373452947,1753014648882,-2168.91,0.00019178,2]
[373452948,1753014648891,-1586.53,0.00019178,2]
[373452950,1753014648901,-5167.59,0.00019178,2]
[373452952,1753014648910,-4167.7,0.00019178,2]
[373452954,1753014648920,-480.0,0.00019178,2]
[373452956,1753014648929,-480.0,0.00019178,2]
[373452957,1753014648939,-1125.81,0.00019178,2]
[373452959,1753014648948,-2843.64,0.00019178,2]
[373452961,1753014648958,-1714.93,0.00019178,2]
[373452963,1753014648967,-480.0,0.00019178,2]
[373452965,1753014648976,-480.0,0.00019178,2]
[373452966,1753014648986,-480.0,0.00019178,2]
[373452968,1753014648995,-1637.63,0.00019178,2]
[373452970,1753014649005,-485.89,0.00019178,2]
[373452972,1753014649014,-158.6007,0.00019178,2]
[373452974,1753014649023,-480.0,0.00019178,2]
[373452975,1753014649032,-728.46,0.00019178,2]
[373452977,1753014649042,-938.16,0.00019178,2]
[373452979,1753014649052,-424.72190609,0.00019178,2]
[373452981,1753014649061,-480.0,0.00019178,2]
[373452983,1753014649070,-675.77,0.00019178,2]
[373452984,1753014649080,-424.05749786,0.00019178,2]
[373452986,1753014649089,-480.0,0.00019178,2]
[373452988,1753014649098,-480.0,0.00019178,2]
[373452997,1753014649108,-1011.09,0.00019178,2]
[373452999,1753014649205,-480.0,0.00019178,2]
[373453000,1753014649214,-401.34991347,0.00019178,2]
[373453002,1753014649224,-500.36,0.00019178,2]
[373453004,1753014649234,-583.29,0.00019178,2]
[373453006,1753014649243,-616.62,0.00019178,2]
[373453008,1753014649252,-480.0,0.00019178,2]
[373453010,1753014649262,-480.0,0.00019178,2]
[373453011,1753014649271,-3135.79,0.00019178,2]
[373453013,1753014649280,-1176.04,0.00019178,2]
[373453015,1753014649289,-480.0,0.00019178,2]
[373453017,1753014649298,-480.0,0.00019178,2]
[373453018,1753014649307,-1139.14,0.00019178,2]
[373453020,1753014649317,-480.0,0.00019178,2]
[373453022,1753014649328,-480.0,0.00019178,2]
[373453024,1753014649338,-440.0,0.00019178,2]
[373453026,1753014649347,-598.4,0.00019178,2]
[373453027,1753014649356,-151.0,0.00019178,2]
[373453028,1753014649365,-163.56,0.00019178,2]
[373453029,1753014649374,-4512.5,0.00019178,2]
[373453030,1753014649383,-348.29578688,0.00019196,2]
[373453031,1753014649391,-300.0,0.00019196,2]
[373453032,1753014649400,-1866234.68228249,0.00019197,2]
[373453033,1753014649409,-500.0,0.0001921,2]
[373453034,1753014649418,-500.0,0.0001921,2]
[373453035,1753014649427,-1415.97731019,0.00019224,2]
[373453036,1753014649436,-155.45930866,0.00019242,2]
[373453037,1753014649445,-500.0,0.00019273,2]
[373453038,1753014649454,-500.0,0.00019279,2]
[373453039,1753014649463,-500.0,0.00019279,2]
[373453040,1753014649472,-627.92,0.00019279,2]
[373453042,1753014649482,-500.0,0.00019279,2]
[373453043,1753014649491,-593.74644302,0.00019279,2]
[373453045,1753014649501,-500.0,0.00019279,2]
[373453047,1753014649510,-500.0,0.00019279,2]
[373453049,1753014649519,-306.4805328,0.00019286,2]
[373453051,1753014649528,-500.0,0.00019286,2]
[373453053,1753014649537,-500.0,0.00019286,2]
[373453055,1753014649546,-500.0,0.00019286,2]
[373453057,1753014649555,-500.0,0.00019286,2]
[373453059,1753014649564,-500.0,0.00019286,2]
[373453061,1753014649573,-500.0,0.00019286,2]
[373453063,1753014649582,-500.0,0.00019286,2]
[373453065,1753014649591,-500.0,0.00019286,2]
[373453067,1753014649600,-300.0,0.00019286,2]
[373453069,1753014649609,-151.0,0.00019287,2]
[373453071,1753014649618,-151.0,0.00019287,2]
[373453073,1753014649632,-420.0,0.00019287,2]
[373453075,1753014649642,-420.0,0.00019287,2]
[373453077,1753014649651,-436.86,0.00019287,2]
[373453079,1753014649660,-480.0,0.00019287,2]
[373453081,1753014649669,-420.0,0.00019287,2]
[373453083,1753014649678,-480.0,0.00019287,2]
[373453085,1753014649687,-480.0,0.00019287,2]
[373453086,1753014649696,-420.0,0.00019287,2]
[373453088,1753014649705,-480.0,0.00019287,2]
[373453090,1753014649714,-402.4035856,0.00019287,2]
[373453092,1753014649723,-480.0,0.00019287,2]
[373453094,1753014649732,-480.0,0.00019287,2]
[373453096,1753014649741,-480.0,0.00019287,2]
[373453098,1753014649750,-480.0,0.00019287,2]
[373453100,1753014649759,-480.0,0.00019287,2]
[373453102,1753014649768,-480.0,0.00019287,2]
[373453104,1753014649777,-480.0,0.00019287,2]
[373453106,1753014649787,-480.0,0.00019287,2]
[373453108,1753014649796,-480.0,0.00019287,2]
[373453110,1753014649805,-480.0,0.00019287,2]
[373453112,1753014649814,-480.0,0.00019287,2]
[373453114,1753014649823,-480.0,0.00019287,2]
[373453117,1753014649833,-480.0,0.00019287,2]
[373453119,1753014649842,-480.0,0.00019287,2]
[373453121,1753014649851,-480.0,0.00019287,2]
[373453122,1753014649860,-440.0,0.00019287,2]
[373453125,1753014649869,-582.92,0.00019287,2]
[373453126,1753014649879,-480.0,0.00019287,2]
[373453128,1753014649888,-614.5,0.00019287,2]
[373453130,1753014649897,-480.0,0.00019287,2]
[373453132,1753014649906,-257.64,0.00019287,2]
[373453134,1753014649915,-317.38,0.00019287,2]
[373453136,1753014649924,-480.0,0.00019287,2]
[373453138,1753014649933,-480.0,0.00019287,2]
[373453140,1753014649942,-480.0,0.00019287,2]
[373453142,1753014649951,-480.0,0.00019287,2]
[373453144,1753014649960,-480.0,0.00019287,2]
[373453146,1753014649969,-480.0,0.00019287,2]
[373453148,1753014649978,-480.0,0.00019287,2]
[373453150,1753014649987,-480.0,0.00019287,2]
[373453152,1753014649996,-421.55967407,0.00019287,2]
[373453154,1753014650005,-480.0,0.00019287,2]
[373453156,1753014650014,-543.07489872,0.00019287,2]
[373453158,1753014650024,-480.0,0.00019287,2]
[373453160,1753014650032,-480.0,0.00019287,2]
[373453162,1753014650041,-480.0,0.00019287,2]
[373453164,1753014650050,-480.0,0.00019287,2]
[373453166,1753014650059,-480.0,0.00019287,2]
[373453168,1753014650068,-480.0,0.00019287,2]
[373453170,1753014650077,-168.81,0.00019287,2]
[373453172,1753014650086,-480.0,0.00019287,2]
[373453174,1753014650095,-480.0,0.00019287,2]
[373453176,1753014650104,-480.0,0.00019287,2]
[373453179,1753014650114,-530.9,0.00019287,2]
[373453180,1753014650124,-480.0,0.00019287,2]
[373453182,1753014650133,-480.0,0.00019287,2]
[373453184,1753014650142,-480.0,0.00019287,2]
[373453187,1753014650151,-480.0,0.00019287,2]
[373453189,1753014650161,-480.0,0.00019287,2]
[373453191,1753014650170,-1149.63,0.00019287,2]
[373453193,1753014650179,-480.0,0.00019287,2]
[373453195,1753014650188,-480.0,0.00019287,2]
[373453197,1753014650198,-480.0,0.00019287,2]
[373453199,1753014650207,-480.0,0.00019287,2]
[373453201,1753014650217,-480.0,0.00019287,2]
[373453203,1753014650226,-480.0,0.00019287,2]
[373453205,1753014650235,-480.0,0.00019287,2]
[373453207,1753014650245,-480.0,0.00019287,2]
[373453209,1753014650253,-1157.17,0.00019287,2]
[373453211,1753014650263,-1110.3,0.00019287,2]
[373453213,1753014650271,-480.0,0.00019287,2]
[373453215,1753014650280,-480.0,0.00019287,2]
[373453217,1753014650289,-480.0,0.00019287,2]
[373453219,1753014650298,-624.25,0.00019287,2]
[373453221,1753014650307,-480.0,0.00019287,2]
[373453223,1753014650316,-480.0,0.00019287,2]
[373453225,1753014650325,-2174.54,0.00019287,2]
[373453226,1753014650334,-797.31,0.00019287,2]
[373453228,1753014650343,-1022.195767,0.00019287,2]
[373453231,1753014650353,-559.68,0.00019287,2]
[373453233,1753014650362,-480.0,0.00019287,2]
[373453234,1753014650371,-663.69,0.00019287,2]
[373453236,1753014650380,-480.0,0.00019287,2]
[373453239,1753014650389,-480.0,0.00019287,2]
[373453241,1753014650399,-480.0,0.00019287,2]
[373453242,1753014650408,-616.09,0.00019287,2]
[373453244,1753014650417,-1284.099981,0.00019287,2]
[373453246,1753014650426,-1246.634372,0.00019287,2]
[373453249,1753014650436,-480.0,0.00019287,2]
[373453250,1753014650445,-664.53,0.00019287,2]
[373453252,1753014650454,-480.0,0.00019287,2]
[373453254,1753014650463,-1646.34,0.00019287,2]
[373453256,1753014650472,-480.0,0.00019287,2]
[373453258,1753014650481,-480.0,0.00019287,2]
[373453260,1753014650490,-480.0,0.00019287,2]
[373453262,1753014650499,-480.0,0.00019287,2]
[373453264,1753014650508,-480.0,0.00019287,2]
[373453266,1753014650518,-480.0,0.00019287,2]
[373453268,1753014650527,-663.81,0.00019287,2]
[373453270,1753014650536,-603.17,0.00019287,2]
[373453272,1753014650545,-480.0,0.00019287,2]
[373453274,1753014650554,-629.91,0.00019287,2]
[373453276,1753014650563,-885.52,0.00019287,2]
[373453279,1753014650573,-508.26,0.00019287,2]
[373453280,1753014650582,-646.27,0.00019287,2]
[373453282,1753014650591,-480.0,0.00019287,2]
[373453284,1753014650600,-741.47,0.00019287,2]
[373453286,1753014650609,-363.9,0.00019287,2]
[373453288,1753014650618,-650.94,0.00019287,2]
[373453290,1753014650630,-480.0,0.00019287,2]
[373453292,1753014650642,-2188.28,0.00019287,2]
[373453295,1753014650651,-3039.93,0.00019287,2]
[373453297,1753014650661,-480.0,0.00019287,2]
[373453299,1753014650670,-480.0,0.00019287,2]
[373453300,1753014650680,-699.61,0.00019287,2]
[373453303,1753014650690,-540.27,0.00019287,2]
[373453305,1753014650699,-480.0,0.00019287,2]
[373453307,1753014650708,-911.93,0.00019287,2]
[373453308,1753014650719,-480.0,0.00019287,2]
[373453310,1753014650729,-480.0,0.00019287,2]
[373453312,1753014650738,-480.0,0.00019287,2]
[373453314,1753014650748,-480.0,0.00019287,2]
[373453316,1753014650757,-443.88,0.00019287,2]
[373453318,1753014650765,-480.0,0.00019287,2]
[373453320,1753014650775,-480.0,0.00019287,2]
[373453322,1753014650784,-813.91,0.00019287,2]
[373453324,1753014650793,-480.0,0.00019287,2]
[373453326,1753014650803,-652.74,0.00019287,2]
[373453328,1753014650812,-480.0,0.00019287,2]
[373453330,1753014650821,-480.0,0.00019287,2]
[373453332,1753014650830,-679.68,0.00019287,2]
[373453334,1753014650839,-480.0,0.00019287,2]
[373453336,1753014650848,-480.0,0.00019287,2]
[373453338,1753014650857,-1671.03,0.00019287,2]
[373453340,1753014650867,-480.0,0.00019287,2]
[373453342,1753014650877,-420.0,0.00019287,2]
[373453344,1753014650886,-480.0,0.00019287,2]
[373453346,1753014650895,-583.7,0.00019287,2]
[373453348,1753014650905,-620.3,0.00019287,2]
[373453350,1753014650915,-480.0,0.00019287,2]
[373453352,1753014650925,-480.0,0.00019287,2]
[373453355,1753014650934,-480.0,0.00019287,2]
[373453357,1753014650943,-480.0,0.00019287,2]
[373453359,1753014650953,-480.0,0.00019287,2]
[373453360,1753014650963,-480.0,0.00019287,2]
[373453362,1753014650972,-480.0,0.00019287,2]
[373453365,1753014650981,-610.89,0.00019287,2]
[373453367,1753014650990,-536.61,0.00019287,2]
[373453369,1753014650999,-480.0,0.00019287,2]
[373453370,1753014651009,-768.41,0.00019287,2]
[373453373,1753014651018,-480.0,0.00019287,2]
[373453374,1753014651027,-765.32,0.00019287,2]
[373453376,1753014651037,-480.0,0.00019287,2]
[373453379,1753014651046,-480.0,0.00019287,2]
[373453380,1753014651055,-480.0,0.00019287,2]
[373453382,1753014651065,-211.19,0.00019287,2]
[373453385,1753014651074,-480.0,0.00019287,2]
[373453387,1753014651084,-983.09,0.00019287,2]
[373453389,1753014651093,-480.0,0.00019287,2]
[373453390,1753014651102,-575.87,0.00019287,2]
[373453392,1753014651165,-448.38,0.00019287,2]
[373453394,1753014651174,-593.69,0.00019287,2]
[373453397,1753014651185,-832.57,0.00019287,2]
[373453398,1753014651194,-480.0,0.00019287,2]
[373453400,1753014651204,-480.0,0.00019287,2]
[373453403,1753014651213,-480.0,0.00019287,2]
[373453404,1753014651222,-480.0,0.00019287,2]
[373453406,1753014651232,-480.0,0.00019287,2]
[373453409,1753014651241,-480.0,0.00019287,2]
[373453410,1753014651250,-480.0,0.00019287,2]
[373453412,1753014651260,-420.0,0.00019287,2]
[373453415,1753014651269,-737.5,0.00019287,2]
[373453416,1753014651278,-480.0,0.00019287,2]
[373453418,1753014651288,-480.0,0.00019287,2]
[373453421,1753014651298,-480.0,0.00019287,2]
[373453422,1753014651307,-932.28,0.00019287,2]
[373453425,1753014651316,-480.0,0.00019287,2]
[373453426,1753014651325,-480.0,0.00019287,2]
[373453429,1753014651335,-480.0,0.00019287,2]
[373453430,1753014651345,-480.0,0.00019287,2]
[373453433,1753014651355,-480.0,0.00019287,2]
[373453435,1753014651364,-480.0,0.00019287,2]
[373453436,1753014651373,-480.0,0.00019287,2]
[373453439,1753014651383,-510.1,0.00019287,2]
[373453441,1753014651392,-480.0,0.00019287,2]
[373453443,1753014651401,-480.0,0.00019287,2]
[373453444,1753014651410,-480.0,0.00019287,2]
[373453447,1753014651419,-480.0,0.00019287,2]
[373453449,1753014651429,-480.0,0.00019287,2]
[373453450,1753014651438,-480.0,0.00019287,2]
[373453453,1753014651448,-480.0,0.00019287,2]
[373453455,1753014651457,-836.95,0.00019287,2]
[373453457,1753014651466,-480.0,0.00019287,2]
[373453459,1753014651475,-480.0,0.00019287,2]
[373453461,1753014651484,-480.0,0.00019287,2]
[373453463,1753014651494,-480.0,0.00019287,2]
[373453465,1753014651503,-480.0,0.00019287,2]
[373453467,1753014651513,-480.0,0.00019287,2]
[373453469,1753014651522,-480.0,0.00019287,2]
[373453471,1753014651532,-480.0,0.00019287,2]
[373453473,1753014651541,-480.0,0.00019287,2]
[373453475,1753014651551,-511.37,0.00019287,2]
[373453477,1753014651560,-870.11,0.00019287,2]
[373453479,1753014651570,-480.0,0.00019287,2]
[373453481,1753014651579,-478.59,0.00019287,2]
[373453483,1753014651589,-695.17,0.00019287,2]
[373453485,1753014651599,-480.0,0.00019287,2]
[373453487,1753014651608,-480.0,0.00019287,2]
[373453489,1753014651619,-488.67,0.00019287,2]
[373453491,1753014651630,-820.22,0.00019287,2]
[373453493,1753014651642,-480.0,0.00019287,2]
[373453495,1753014651652,-480.0,0.00019287,2]
[373453497,1753014651661,-480.0,0.00019287,2]
[373453499,1753014651671,-480.0,0.00019287,2]
[373453501,1753014651681,-751.71,0.00019287,2]
[373453503,1753014651690,-1085.44,0.00019287,2]
[373453505,1753014651700,-480.0,0.00019287,2]
[373453507,1753014651710,-160.8,0.00019287,2]
[373453509,1753014651720,-480.0,0.00019287,2]
[373453511,1753014651730,-543.84,0.00019287,2]
[373453513,1753014651739,-480.0,0.00019287,2]
[373453515,1753014651749,-917.97,0.00019287,2]
[373453517,1753014651758,-480.0,0.00019287,2]
[373453519,1753014651768,-600.52,0.00019287,2]
[373453521,1753014651778,-1497.64,0.00019287,2]
[373453523,1753014651788,-612.49,0.00019287,2]
[373453525,1753014651797,-1202.26,0.00019287,2]
[373453526,1753014651807,-480.0,0.00019287,2]
[373453527,1753014651816,-480.0,0.00019287,2]
[373453528,1753014651825,-480.0,0.00019287,2]
[373453529,1753014651835,-480.0,0.00019287,2]
[373453530,1753014651845,-480.0,0.00019287,2]
[373453531,1753014651854,-480.0,0.00019287,2]
[373453532,1753014651864,-480.0,0.00019287,2]
[373453533,1753014651874,-642.04,0.00019287,2]
[373453534,1753014651884,-480.0,0.00019287,2]
[373453536,1753014651893,-520.78,0.00019287,2]
[373453538,1753014651903,-480.0,0.00019287,2]
[373453540,1753014651913,-496.41,0.00019287,2]
[373453542,1753014651923,-480.0,0.00019287,2]
[373453544,1753014651933,-480.0,0.00019287,2]
[373453546,1753014651942,-573.0180632,0.00019287,2]
[373453548,1753014651952,-818.44,0.00019287,2]
[373453550,1753014651962,-420.0,0.00019287,2]
[373453552,1753014651971,-565.44,0.00019287,2]
[373453554,1753014651980,-480.0,0.00019287,2]
[373453556,1753014651990,-480.0,0.00019287,2]
[373453559,1753014652007,-761.66,0.00019287,2]
[373453560,1753014652017,-430.11,0.00019287,2]
[373453562,1753014652026,-480.0,0.00019287,2]
[373453565,1753014652036,-480.0,0.00019287,2]
[373453567,1753014652046,-480.0,0.00019287,2]
[373453569,1753014652055,-2352.9,0.00019287,2]
[373453571,1753014652066,-480.0,0.00019287,2]
[373453573,1753014652075,-1713.86,0.00019287,2]
[373453575,1753014652085,-480.0,0.00019287,2]
[373453577,1753014652094,-480.0,0.00019287,2]
[373453579,1753014652103,-480.0,0.00019287,2]
[373453581,1753014652114,-480.0,0.00019287,2]
[373453583,1753014652125,-480.0,0.00019287,2]
[373453585,1753014652135,-480.0,0.00019287,2]
[373453587,1753014652144,-783.08,0.00019287,2]
[373453589,1753014652154,-480.0,0.00019287,2]
[373453591,1753014652165,-681.27,0.00019287,2]
[373453593,1753014652174,-480.0,0.00019287,2]
[373453595,1753014652184,-1257.01,0.00019287,2]
[373453597,1753014652193,-480.0,0.00019287,2]
[373453599,1753014652203,-480.0,0.00019287,2]
[373453601,1753014652213,-785.79,0.00019287,2]
[373453603,1753014652223,-480.0,0.00019287,2]
[373453606,1753014652232,-593.27,0.00019287,2]
[373453608,1753014652242,-480.0,0.00019287,2]
[373453610,1753014652251,-823.1,0.00019287,2]
[373453612,1753014652261,-480.0,0.00019287,2]
[373453614,1753014652270,-1245.21,0.00019287,2]
[373453616,1753014652279,-480.0,0.00019287,2]
[373453618,1753014652289,-480.0,0.00019287,2]
[373453620,1753014652299,-480.0,0.00019287,2]
[373453622,1753014652308,-480.0,0.00019287,2]
[373453624,1753014652318,-480.0,0.00019287,2]
[373453626,1753014652327,-480.0,0.00019287,2]
[373453628,1753014652336,-480.0,0.00019287,2]
[373453630,1753014652347,-480.0,0.00019287,2]
[373453632,1753014652356,-480.04,0.00019287,2]
[373453634,1753014652366,-480.0,0.00019287,2]
[373453636,1753014652378,-480.0,0.00019287,2]
[373453638,1753014652387,-192.15,0.00019287,2]
[373453640,1753014652397,-719.41,0.00019287,2]
[373453642,1753014652407,-662.76,0.00019287,2]
[373453644,1753014652416,-480.0,0.00019287,2]
[373453646,1753014652426,-420.0,0.00019287,2]
[373453648,1753014652436,-480.0,0.00019287,2]
[373453650,1753014652447,-480.0,0.00019287,2]
[373453652,1753014652456,-738.09,0.00019287,2]
[373453654,1753014652466,-724.27,0.00019287,2]
[373453656,1753014652476,-480.0,0.00019287,2]
[373453658,1753014652485,-480.0,0.00019287,2]
[373453660,1753014652495,-480.0,0.00019287,2]
[373453662,1753014652505,-480.0,0.00019287,2]
[373453664,1753014652514,-480.0,0.00019287,2]
[373453666,1753014652525,-480.0,0.00019287,2]
[373453668,1753014652534,-519.0023587,0.00019287,2]
[373453670,1753014652545,-176.0124241,0.00019287,2]
[373453672,1753014652555,-733.91,0.00019287,2]
[373453674,1753014652564,-480.0,0.00019287,2]
[373453676,1753014652574,-480.0,0.00019287,2]
[373453678,1753014652583,-647.33,0.00019287,2]
[373453680,1753014652593,-1454.54,0.00019287,2]
[373453682,1753014652603,-480.0,0.00019287,2]
[373453684,1753014652612,-731.29,0.00019287,2]
[373453687,1753014652623,-797.39,0.00019287,2]
[373453689,1753014652634,-480.0,0.00019287,2]
[373453690,1753014652647,-480.0,0.00019287,2]
[373453692,1753014652657,-480.0,0.00019287,2]
[373453694,1753014652667,-480.0,0.00019287,2]
[373453697,1753014652677,-599.98,0.00019287,2]
[373453699,1753014652688,-1373.77,0.00019287,2]
[373453701,1753014652697,-480.0,0.00019287,2]
[373453703,1753014652706,-480.0,0.00019287,2]
[373453705,1753014652717,-480.0,0.00019287,2]
[373453707,1753014652726,-543.85577527,0.00019287,2]
[373453709,1753014652736,-480.0,0.00019287,2]
[373453711,1753014652745,-480.0,0.00019287,2]
[373453713,1753014652755,-480.0,0.00019287,2]
[373453715,1753014652764,-420.0,0.00019287,2]
[373453717,1753014652774,-2330.59,0.00019287,2]
[373453719,1753014652784,-793.43,0.00019287,2]
[373453721,1753014652794,-400.0,0.00019287,2]
[373453723,1753014652803,-480.0,0.00019287,2]
[373453725,1753014652813,-480.0,0.00019287,2]
[373453727,1753014652822,-480.0,0.00019287,2]
[373453729,1753014652831,-2644.46,0.00019287,2]
[373453731,1753014652841,-6377.84,0.00019287,2]
[373453733,1753014652851,-480.0,0.00019287,2]
[373453735,1753014652860,-480.0,0.00019287,2]
[373453737,1753014652870,-480.0,0.00019287,2]
[373453739,1753014652880,-480.0,0.00019287,2]
[373453741,1753014652890,-480.0,0.00019287,2]
[373453743,1753014652900,-480.0,0.00019287,2]
[373453745,1753014652910,-480.0,0.00019287,2]
[373453747,1753014652919,-400.0,0.00019287,2]
[373453749,1753014652929,-400.0,0.00019287,2]
[373453751,1753014652939,-480.0,0.00019287,2]
[373453754,1753014652948,-865.56,0.00019287,2]
[373453756,1753014652958,-505.77,0.00019287,2]
[373453758,1753014652967,-816.21,0.00019287,2]
[373453760,1753014652976,-480.0,0.00019287,2]
[373453762,1753014652986,-480.0,0.00019287,2]
[373453764,1753014652996,-480.0,0.00019287,2]
[373453766,1753014653005,-480.0,0.00019287,2]
[373453768,1753014653014,-480.0,0.00019287,2]
[373453770,1753014653024,-480.0,0.00019287,2]
[373453772,1753014653033,-480.0,0.00019287,2]
[373453774,1753014653042,-480.0,0.00019287,2]
[373453776,1753014653052,-480.0,0.00019287,2]
[373453778,1753014653061,-480.0,0.00019287,2]
[373453780,1753014653071,-480.0,0.00019287,2]
[373453782,1753014653081,-400.0,0.00019287,2]
[373453784,1753014653090,-400.0,0.00019287,2]
[373453786,1753014653100,-480.0,0.00019287,2]
[373453788,1753014653110,-991.22,0.00019287,2]
[373453790,1753014653120,-803.64,0.00019287,2]
[373453792,1753014653130,-480.0,0.00019287,2]
[373453794,1753014653140,-480.0,0.00019287,2]
[373453796,1753014653150,-669.29,0.00019287,2]
[373453798,1753014653161,-2749.41,0.00019287,2]
[373453800,1753014653170,-480.0,0.00019287,2]
[373453802,1753014653180,-480.0,0.00019287,2]
[373453805,1753014653190,-400.0,0.00019287,2]
[373453807,1753014653200,-480.0,0.00019287,2]
[373453809,1753014653209,-480.0,0.00019287,2]
[373453811,1753014653219,-1056.65,0.00019287,2]